Cogmind - Beta 10.2 @@@ ROGUE MODE // 2021.03.16 @ 17:12:09 Player: Moodge Result: Destroyed by G-34 Mercenary with Small Laser Performance ------------- Evolutions (1) 500 Regions Visited (2) 400 Robots Destroyed (11) 55 Value Destroyed (323) 323 Prototype IDs (2) 40 Alien Tech Used (0) 0 Bonus (0) 0 TOTAL SCORE: 1318 Bonus ------- None Cogmind --------- Core Integrity 0/400 Matter 300/300 Energy 100/100 System Corruption 1% Temperature Cool (380) Movement Core (50) Location -9/Materials Parts ------- > --- POWER (1) -------- (None) > --- PROPULSION (3) --- (None) > --- UTILITY (3) ------ (None) > --- WEAPON (2) ------- Backup Laser III > --- INVENTORY (4) ---- Deuterium Engine Small Storage Unit Peak State ------------ > --- POWER ------------ Deuterium Engine > --- PROPULSION ------- Aluminum Leg Aluminum Leg > --- UTILITY ---------- Hardened Medium Armor Plating Hardened Medium Armor Plating > --- WEAPON ----------- Backup Laser III Backup Laser III > --- INVENTORY -------- Deuterium Engine Small Storage Unit [Rating: 17] Favorites ----------- Power Ion Engine Engine Ion Engine Propulsion Wheel Treads Light Treads Leg Aluminum Leg Wheel Wheel Utility Small Storage Unit Device Improved Terrain Scanner Storage Small Storage Unit Protection Core Shielding Weapon Light Assault Rifle Energy Gun EM Shotgun Ballistic Gun Light Assault Rifle Build | -11 -10 -9 ------- Run | Scr Mat Mat Slots Evolved 2 | . . 2 Power . | . . . Propulsion 1 | . . 1 Utility 1 | . . 1 Weapon . | . . . Parts Attached 25 | 8 2 15 Power 3 | 1 . 2 Engine 3 | 1 . 2 Core . | . . . Reactor . | . . . Propulsion 8 | 4 . 4 Treads 1 | 1 . . Leg 5 | 1 . 4 Wheel 2 | 2 . . Hover . | . . . Flight . | . . . Utility 7 | 1 1 5 Device 1 | . . 1 Storage 1 | 1 . . Processor . | . . . Hackware . | . . . Protection 5 | . 1 4 Artifact . | . . . Weapon 7 | 2 1 4 Energy Gun 3 | . . 3 Energy Cannon . | . . . Ballistic Gun 4 | 2 1 1 Ballistic Cannon . | . . . Launcher . | . . . Special Weapon . | . . . Impact Weapon . | . . . Slashing Weapon . | . . . Piercing Weapon . | . . . Special Melee Weapon . | . . . Unidentified Prototypes . | . . . Parts Lost 18 | . . 18 Power 2 | . . 2 Propulsion 6 | . . 6 Utility 5 | . . 5 Weapon 5 | . . 5 Highest Loss Streak 8 | . . 8 Average Slot Usage (%) 78 | . 93 68 Engine 11 | . 14 9 Leg 4 | . . 8 Wheel 17 | . 28 10 Device 1 | . . 2 Storage 9 | . 14 7 Protection 15 | . 11 18 Energy Gun 5 | . . 9 Ballistic Gun 11 | . 24 2 Naked Turns . | . . . Heaviest Build 33 | 12 13 33 Greatest Support 30 | 20 20 30 Greatest Overweight (x) 4 | . . 4 Average Overweight (x) . | . . . Largest Inventory Capacity 6 | 6 6 6 Average Capacity 5 | 4 6 5 Most Carried 4 | 4 3 4 Average Carried 1 | 1 2 1 Final Capacity 6 | 6 6 4 Final Carried 3 | 1 3 2 Class Distribution -------------------- 100% | Mutant Dominant Class ---------------- Mutant | -10/Materials Mutant | -9/Materials Resources | -11 -10 -9 ----------- Run | Scr Mat Mat Matter Collected 545 | 220 212 113 Remotely . | . . . Salvage Created 422 | . 237 185 Parts 22 | . 13 9 Haulers Intercepted . | . . . Recyclers Shooed 2 | . 2 . Parts Field Recycled . | . . . Retrieved Matter . | . . . Parts Self-Destructed . | . . . Prevented . | . . . Kills | -11 -10 -9 ------- Run | Scr Mat Mat Combat Hostiles Destroyed 8 | . 4 4 Guns 8 | . 4 4 Classes Destroyed 5 | . 4 1 Worker 1 | . 1 . Builder 1 | . 1 . Mechanic 1 | . 1 . Grunt 6 | . 4 2 Sentry 2 | . . 2 Best Kill Streak 5 | . 5 1 Combat Bots Only 2 | . 2 1 Max Kills in Single Turn 1 | . 1 1 Gunslinging . | . . . Exploded . | . . . Melee . | . . . Uniques/NPCs Destroyed . | . . . Combat | -11 -10 -9 -------- Run | Scr Mat Mat Damage Taken 2249 | . 212 2037 Core 465 | . 59 406 Absorbed by Shields . | . . . Core Remaining (%) 88 | 100 76 . Volleys Fired 80 | . 37 43 Largest 2 | . 2 2 Hottest 110 | . 40 110 Shots Fired 140 | . 74 66 Gun 140 | . 74 66 Cannon . | . . . Launcher . | . . . Special . | . . . Kinetic 83 | . 74 9 Thermal 45 | . . 45 Explosive . | . . . Electromagnetic 12 | . . 12 Robot Hit Streak 21 | . 11 21 Robot Miss Streak 4 | . 3 4 Penetration Max . | . . . Secondary Targets 1 | . . 1 Max Gunslinging Chain 1 | . . 1 Shots Hit Robots 97 | . 47 50 Core Hits 29 | . 16 13 Critical Hits . | . . . Critical Kills . | . . . Critical Parts Destroyed . | . . . Melee Attacks . | . . . Impact . | . . . Slashing . | . . . Piercing . | . . . Sneak Attacks . | . . . Combat Hostiles . | . . . Follow-up Attacks . | . . . Damage Inflicted 916 | . 384 532 Guns 901 | . 375 526 Cannons . | . . . Explosions . | . . . Melee . | . . . Ramming 15 | . 9 6 Kinetic 431 | . 375 56 Thermal 320 | . . 320 Explosive . | . . . Electromagnetic 150 | . . 150 Impact . | . . . Slashing . | . . . Piercing . | . . . Highest Corruption 1 | . 1 1 Average Corruption 1 | . 1 1 Corruption Purged . | . . . Effects 1 | . 1 . Energy Discharges 1 | . 1 . Overload Shots . | . . . Overflow Damage . | . . . Projectiles . | . . . Explosions . | . . . Melee . | . . . Knockbacks . | . . . Impact . | . . . Kinetic . | . . . Secondary . | . . . Self-Inflicted Damage 7 | . 4 3 Shots . | . . . Rammed 4 | . 1 3 Targets Rammed 4 | . 1 3 Kicked . | . . . Crushed . | . . . Highest Temperature 602 | . 12 602 Average Temperature 155 | . 7 170 Received Heat Transfer 1098 | . 114 984 Effects 13 | . . 13 Energy Bleed 1 | . . 1 Interference 2 | . . 2 Matter Decay 1 | . . 1 Short Circuit 2 | . . 2 Damage (major) 7 | . . 7 Siege Activations . | . . . Robots Corrupted . | . . . Combat Hostiles . | . . . Parts Fried . | . . . Impact Corruptions . | . . . Robots Melted . | . . . Combat Hostiles . | . . . Parts Melted 2 | . . 2 Heat Transferred 851 | . . 851 Parts Sabotaged . | . . . Parts Stolen . | . . . Parts Stripped . | . . . Power Chain Reactions . | . . . Missiles Intercepted . | . . . Alert | -11 -10 -9 ------- Run | Scr Mat Mat Peak Influence 168 | . 161 168 Initial 67 | . . 67 Average 84 | . 91 93 Maximum Alert Level . | . . . Low Security (%) 100 | 100 100 100 Level 1 . | . . . Level 2 . | . . . Level 3 . | . . . Level 4 . | . . . Level 5 . | . . . High Security . | . . . Max Security . | . . . Squads Dispatched 4 | . 2 2 Investigation 2 | . 1 1 Extermination . | . . . Reinforcement 2 | . 1 1 Assault . | . . . Garrison . | . . . Intercept . | . . . Construction Impeded . | . . . Haulers Reinforced . | . . . Stealth | -11 -10 -9 --------- Run | Scr Mat Mat Distress Signals 3 | . . 3 Communications Jammed . | . . . Distress Signals . | . . . Times Spotted 28 | . 8 20 Peak Tracking Total 9 | . 3 9 Tactical Retreats 4 | . . 4 Traps | -11 -10 -9 ------- Run | Scr Mat Mat Traps Triggered 1 | . . 1 Indirectly . | . . . Trap Hack Attempts . | . . . Triggered . | . . . Disarmed . | . . . Reprogrammed . | . . . Reused . | . . . Traps Extracted . | . . . Installed . | . . . Triggered . | . . . Machines | -11 -10 -9 ---------- Run | Scr Mat Mat Machines Disabled 1 | . 1 . Max in Single Turn 1 | . 1 . Machines Sabotaged . | . . . Garrisons Compromised . | . . . Overloaded Fab Kills . | . . . Fab Network Shutdowns . | . . . Hacking | -11 -10 -9 --------- Run | Scr Mat Mat Machines Accessed 5 | . 3 2 Terminals 2 | . 2 . Fabricators . | . . . Repair Stations 2 | . 1 1 Recycling Units . | . . . Scanalyzers 1 | . . 1 Garrison Access . | . . . Total Hacks 11 | . 8 3 Successful 9 | . 6 3 Failed 2 | . 2 . Catastrophic . | . . . Database Lockouts . | . . . Manual 1 | . 1 . Terminals 5 | . 5 . Fabricators . | . . . Repair Stations 4 | . 3 1 Recycling Units . | . . . Scanalyzers 2 | . . 2 Garrison Access . | . . . Terminal Hacks 2 | . 2 . Prototype ID Bank 1 | . 1 . Branch Access Points 1 | . 1 . Fabricator Hacks . | . . . Repair Station Hacks 4 | . 3 1 Scan Component 2 | . 2 . Repair 1 | . 1 . Refit 1 | . . 1 Recycling Unit Hacks . | . . . Scanalyzer 2 | . . 2 Insert Component 1 | . . 1 Analyze 1 | . . 1 Garrison Access Hacks . | . . . Unauthorized Hacks 1 | . 1 . Terminals 1 | . 1 . Botnet 1 | . 1 . Fabricators . | . . . Repair Stations . | . . . Recycling Units . | . . . Scanalyzers . | . . . Garrison Access . | . . . Data Cores Recovered . | . . . Used . | . . . Hacking Detections 2 | . 2 . Full Trace Events 2 | . 2 . Feedback Events 1 | . 1 . Corruption 1 | . 1 . Feedback Blocked . | . . . Robot Schematics Acquired . | . . . Robots Built . | . . . Matter . | . . . Time . | . . . Total Robot Build Rating . | . . . Part Schematics Acquired 1 | . . 1 Parts Built . | . . . Matter . | . . . Time . | . . . Total Part Build Rating . | . . . Parts Repaired 1 | . 1 . Time 26 | . 26 . Parts Recycled . | . . . Recycled Matter . | . . . Retrieved Matter . | . . . Retrieved Components . | . . . Parts Scanalyzed 1 | . . 1 Part Schematics Acquired 1 | . . 1 Parts Damaged . | . . . Bothacking | -11 -10 -9 ------------ Run | Scr Mat Mat Used RIF Installer . | . . . Robots Hacked . | . . . Non-combat . | . . . Combat . | . . . Robot Hacks Applied . | . . . Relay Couplers Released . | . . . Robots Rewired . | . . . Allies Hacked . | . . . Hacks Repelled . | . . . Allies | -11 -10 -9 -------- Run | Scr Mat Mat Total Allies . | . . . Largest Group . | . . . Highest-Rated Group . | . . . Highest-Rated Ally . | . . . Total Orders . | . . . Ally Attacks . | . . . Total Damage . | . . . Kills . | . . . Allies Corrupted . | . . . Allies Melted . | . . . Intel | -11 -10 -9 ------- Run | Scr Mat Mat Robot Analysis Total . | . . . Derelict Logs Recovered . | . . . Drone Launches . | . . . Drone Recoveries . | . . . Exploration | -11 -10 -9 ------------- Run | Scr Mat Mat Turns Passed 735 | 64 259 412 Spaces Moved 402 | 55 131 216 Core 46 | 16 . 30 Treads 3 | 3 . . Legs 76 | 3 . 73 Wheels 277 | 33 131 113 Hover . | . . . Flight . | . . . Fastest Speed 50 | 50 80 80 Average Speed 94 | 77 80 108 Slowest Speed 250 | 160 80 250 Overloaded Moves . | . . . Propulsion Burnouts . | . . . Robots Hopped . | . . . Cave-ins Triggered . | . . . Exploration Rate (%) 18 | 5 25 25 Regions Visited 2 Branch Regions . Pre-discovered Areas . | . . . Known Exits Taken . | . . . Unknown Exits Taken 2 | 1 1 . Scrap Searched . | . . . Spaces Dug . | . . . Terrain Destroyed . | . . . Melee . | . . . Projectile . | . . . AOE . | . . . Terrain Rammed . | . . . Walls Destroyed . | . . . Machines Disabled . | . . . Actions | -11 -10 -9 --------- Run | Scr Mat Mat Total 620 | 75 218 327 Wait 80 | 5 44 31 Move 400 | 54 130 216 Hop . | . . . Pick Up 24 | 6 4 14 Fast Attach 3 | 3 . . Attach 18 | 5 2 11 Detach . | . . . Swap 4 | . . 4 Drop 7 | 2 . 5 Fire 80 | . 37 43 Melee . | . . . Ram 3 | . 1 2 Kick 1 | . . 1 Crush . | . . . Escape Stasis . | . . . Rewire . | . . . Trap . | . . . Miscellaneous . | . . . Route ------- -11/Scrapyard -10/Materials (discovered 3 exits: *Mat / Min x2) -9/Materials History --------- Turn | Location | Event 14 | -11/Scrapyard | Discovered new exit (range 16) 65 | -11/Scrapyard | Entered Materials 95 | -10/Materials | Identified exit to Mines 179 | -10/Materials | Discovered new exit (range 14) 200 | -10/Materials | Repaired Lgt. Assault Rifle 312 | -10/Materials | Build established: Mutant 324 | -10/Materials | Entered another Materials area 324 | -9/Materials | Evolved 2 slots: Propulsion x1, Utility x1 546 | -9/Materials | Core integrity fell below 50% 564 | -9/Materials | Lost 8 parts (1p2n2u3w) 603 | -9/Materials | Core integrity fell below 20% 736 | -9/Materials | Destroyed by G-34 Mercenary with Small Laser Last Messages --------------- 00676_ U-05 Engineer lays Concrete. 00680_ ALERT: Hostiles spotted, dispatching reinforcements to Terminal M005. 00681_ Hrd. Medium Armor Plating destroyed. 00687_ Connecting with Repair Station... >>Refit Scanning configuration... Attaching: Backup Laser III x2 00695_ G-34 Mercenary destroyed. 00695_ Switching to secondary target: G-34 Mercenary. 00704_ Backup Laser III destroyed. 00707_ Hrd. Medium Armor Plating destroyed. 00707_ Aluminum Leg destroyed. 00724_ Heat Sink melted. 00724_ Hvy. Assault Rifle melted. 00724_ Y-45 Defender destroyed. 00726_ Aluminum Leg destroyed. 00732_ Deuterium Engine destroyed. 00734_ Hrd. Medium Armor Plating destroyed. Map ----- +----------------------------------------------------+ | ?????????????????????????????????????????????##### | | ?????????????????????????????????????? | | ?????????????????????????????????????????????##### | | ???????????????????????????????????????????????# | | ???????????????????????????????????????????????# | | ???????????????????????????????????????????????# | | ???????????????????????????????????????????????# | | ???????????????????????????????????????????????# | | ???????????????????????????????????????????????# | | ???????????????????????????????????????????????## | | ?????????????????????????????????????????????##### | | ?????????????????????????????????????????????# !** | | ?????????????????????????????????????????????# * | | ?????????????????????????????????????????????# | | ??????????????????????????????????????######## | | ????????????????????????????????+ | | ??????????????????????????????????????####### #### | | ????????????????????????????????????????????#+#### | | ????????????????????????????????????????????# | | ????????????????????????????????????????????# """" | | ?????????????????????#################??????# """" | | ?????????????????????# # #??????# """" | | ?????????????????????# """" # #??????# """" | | ?????????????????????# ""R" # #??????# """" | | ?????????????????????# "" " # #??????# | | ?????????????????????# @%! # #??????# | | ???????????????????#######g######+################ | | ???????????????# Yg | | ???????????????# Yg | | ???????????????# | | ???????????????# ##############+### ########## | | ???????????????#???????????????? # #????????? | | ??????????????????????????????? ![[# #????????? | | ??????????????????????????????"" ![[# #????????# | | ??????????????????????????????"T [[ # #????????# | | ?????????????????????????????#"" # #????????? | | ?????????????????????????????? # #????????? | | ??????????????????????????????## #### +????????? | | ???????????????????????????????##???# #????????? | | ????????????????????????????????????# #????????? | | ????????????????????????????????????# #????????? | | ???????????????????????????????????? ????????? | | ???????????????????????????????????? ????????? | | ???????????????????????????????????? ????????? | | ???????????????????????????????????? ????????? | | ?????????????????????????????????????????????????? | | ?????????????????????????????????????????????????? | | ?????????????????????????????????????????????????? | | ?????????????????????????????????????????????????? | | ?????????????????????????????????????????????????? | +----------------------------------------------------+ Best States ------------- Heat Dissipation 28 Energy Generation 14 Energy Capacity 275 Matter Stores 300 Matter Capacity 300 Sight Range 16 Terrain Scan Range 16 Terrain Scan Density 10 Armor Coverage 675 Core Shielding 20 Evasion (%) 50 Item Schematics ----------------- Lgt. Assault Rifle | -9/Materials | Scanalyzed Robot Schematics ------------------ None Fabricated ------------ Nothing Alien Tech Used ----------------- None Achievements -------------- None Challenges ------------ None Game ------ Seed CouplerPortableTendrils Manual? 0 Play Time 00:16:36 Cumulative 6.7 hours Start 2021.03.16 @ 16:57:46 End 2021.03.16 @ 17:12:09 Sessions 1 Manual Loads 0 Difficulty Rogue Special Mode None Game No. 24 Rogue 24 Adventurer 0 Explorer 0 Win Type - Total 0 Types 0/0/0/0/0/0/0/0/0 Lore% 2 Gallery% 14 Achievement% 14 Wizard Run 0 Options --------- ASCII 0 Keyboard 0 Movement Mouse Keybinds 0 Fullscreen 1 Font 16/SmallcapsGlow Map View 76x50 Tactical HUD 1 Map Filters NONE Filters NONE Steam 1 RUN: c583beda-a196-494f-870a-8797b73d6cef